fUST/lending_fUST_20250421
["ID","MTS","AMOUNT","RATE_DAILY","PERIOD"]
[358490016,1745206254374,-500.0,0.00019178,2]
[358490017,1745206254385,-500.0,0.00019178,2]
[358490018,1745206254396,-520.91884947,0.00019178,2]
[358490019,1745206254406,-543.36,0.00019178,2]
[358490020,1745206254416,-500.0,0.00019178,2]
[358490021,1745206254426,-501.1339597,0.00019178,2]
[358490022,1745206254435,-500.0,0.00019178,2]
[358490023,1745206254445,-500.0,0.00019178,2]
[358490024,1745206254455,-500.0,0.00019178,2]
[358490025,1745206254465,-500.0,0.00019178,2]
[358490026,1745206254475,-500.0,0.00019178,2]
[358490027,1745206254485,-500.0,0.00019178,2]
[358490028,1745206254494,-500.0,0.00019178,2]
[358490029,1745206254504,-500.0,0.00019178,2]
[358490030,1745206254516,-501.14164684,0.00019178,2]
[358490031,1745206254526,-503.63586012,0.00019178,2]
[358490032,1745206254536,-500.0,0.00019178,2]
[358490033,1745206254545,-500.0,0.00019178,2]
[358490034,1745206254554,-500.0,0.00019178,2]
[358490035,1745206254564,-1183.12,0.00019178,2]
[358490036,1745206254573,-851.4,0.00019178,2]
[358490037,1745206254583,-3219.21,0.00019178,2]
[358490038,1745206254712,-500.0,0.00019178,2]
[358490039,1745206254723,-500.0,0.00019178,2]
[358490040,1745206254732,-500.0,0.00019178,2]
[358490041,1745206254743,-1412.48,0.00019178,2]
[358490042,1745206254755,-500.0,0.00019178,2]
[358490043,1745206254764,-500.0,0.00019178,2]
[358490044,1745206254774,-500.0,0.00019178,2]
[358490045,1745206254784,-500.0,0.00019178,2]
[358490046,1745206254795,-500.0,0.00019178,2]
[358490047,1745206254804,-500.0,0.00019178,2]
[358490048,1745206254814,-500.0,0.00019178,2]
[358490049,1745206254824,-500.0,0.00019178,2]
[358490050,1745206254834,-500.0,0.00019178,2]
[358490051,1745206254844,-500.0,0.00019178,2]
[358490052,1745206254853,-500.0,0.00019178,2]
[358490053,1745206254863,-500.0,0.00019178,2]
[358490054,1745206254872,-405.79491648,0.00019178,2]
[358490055,1745206254881,-500.0,0.00019178,2]
[358490056,1745206254890,-506.94627952,0.00019178,2]
[358490057,1745206254900,-500.0,0.00019178,2]
[358490058,1745206254909,-711.21,0.00019178,2]
[358490059,1745206254919,-500.0,0.00019178,2]
[358490060,1745206254928,-500.0,0.00019178,2]
[358490061,1745206254938,-500.0,0.00019178,2]
[358490062,1745206254947,-1000.0,0.00019178,2]
[358490063,1745206254956,-558.74,0.00019178,2]
[358490064,1745206254967,-500.0,0.00019178,2]
[358490065,1745206254976,-500.0,0.00019178,2]
[358490066,1745206254985,-306.86359168,0.00019178,2]
[358490067,1745206254995,-500.0,0.00019178,2]
[358490068,1745206255004,-501.61284749,0.00019178,2]
[358490069,1745206255014,-500.0,0.00019178,2]
[358490070,1745206255023,-193.33774997,0.00019178,2]
[358490071,1745206255032,-151.0,0.00019178,2]
[358490072,1745206255042,-216.84822917,0.00019178,2]
[358490073,1745206255051,-500.0,0.00019178,2]
[358490074,1745206255060,-500.0,0.00019178,2]
[358490075,1745206255072,-1169.6,0.00019178,2]
[358490076,1745206255081,-500.0,0.00019178,2]
[358490077,1745206255090,-500.0,0.00019178,2]
[358490078,1745206255099,-500.0,0.00019178,2]
[358490079,1745206255109,-500.0,0.00019178,2]
[358490080,1745206255119,-500.0,0.00019178,2]
[358490081,1745206255128,-534.25905908,0.00019178,2]
[358490082,1745206255138,-500.0,0.00019178,2]
[358490083,1745206255149,-248.4019172,0.00019178,2]
[358490084,1745206255158,-500.0,0.00019178,2]
[358490085,1745206255167,-500.0,0.00019178,2]
[358490086,1745206255177,-151.0,0.00019178,2]
[358490087,1745206255186,-500.0,0.00019178,2]
[358490088,1745206255195,-500.0,0.00019178,2]
[358490089,1745206255204,-504.78333822,0.00019178,2]
[358490090,1745206255213,-500.0,0.00019178,2]
[358490091,1745206255223,-500.0,0.00019178,2]
[358490092,1745206255232,-500.0,0.00019178,2]
[358490093,1745206255241,-500.0,0.00019178,2]
[358490094,1745206255251,-500.0,0.00019178,2]
[358490095,1745206255261,-500.0,0.00019178,2]
[358490096,1745206255270,-500.0,0.00019178,2]
[358490097,1745206255279,-2882.5,0.00019178,2]
[358490098,1745206255289,-500.0,0.00019178,2]
[358490099,1745206255299,-500.0,0.00019178,2]
[358490100,1745206255309,-500.0,0.00019178,2]
[358490101,1745206255318,-500.0,0.00019178,2]
[358490102,1745206255327,-500.0,0.00019178,2]
[358490103,1745206255337,-500.0,0.00019178,2]
[358490104,1745206255347,-500.0,0.00019178,2]
[358490105,1745206255356,-500.0,0.00019178,2]
[358490106,1745206255366,-500.0,0.00019178,2]
[358490107,1745206255376,-2820.94,0.00019178,2]
[358490108,1745206255385,-500.0,0.00019178,2]
[358490109,1745206255395,-500.0,0.00019178,2]
[358490110,1745206255405,-500.0,0.00019178,2]
[358490111,1745206255415,-500.0,0.00019178,2]
[358490112,1745206255425,-500.0,0.00019178,2]
[358490113,1745206255434,-500.0,0.00019178,2]
[358490114,1745206255443,-500.0,0.00019178,2]
[358490115,1745206255453,-500.0,0.00019178,2]
[358490116,1745206255462,-500.0,0.00019178,2]
[358490117,1745206255471,-500.0,0.00019178,2]
[358490118,1745206255481,-500.0,0.00019178,2]
[358490119,1745206255490,-1378.8,0.00019178,2]
[358490120,1745206255500,-500.0,0.00019178,2]
[358490121,1745206255510,-540.92,0.00019178,2]
[358490122,1745206255520,-500.0,0.00019178,2]
[358490123,1745206255530,-500.0,0.00019178,2]
[358490124,1745206255540,-500.0,0.00019178,2]
[358490125,1745206255549,-500.0,0.00019178,2]
[358490126,1745206255559,-506.02913063,0.00019178,2]
[358490127,1745206255568,-898.83,0.00019178,2]
[358490128,1745206255578,-500.0,0.00019178,2]
[358490129,1745206255588,-500.0,0.00019178,2]
[358490130,1745206255597,-500.0,0.00019178,2]
[358490131,1745206255607,-514.14788345,0.00019178,2]
[358490132,1745206255616,-500.0,0.00019178,2]
[358490133,1745206255626,-500.0,0.00019178,2]
[358490134,1745206255635,-500.0,0.00019178,2]
[358490135,1745206255645,-500.0,0.00019178,2]
[358490136,1745206255655,-500.0,0.00019178,2]
[358490137,1745206255664,-500.0,0.00019178,2]
[358490138,1745206255673,-502.62302786,0.00019178,2]
[358490139,1745206255683,-503.93112138,0.00019178,2]
[358490140,1745206255693,-500.0,0.00019178,2]
[358490141,1745206255702,-500.0,0.00019178,2]
[358490142,1745206255712,-500.0,0.00019178,2]
[358490143,1745206255722,-500.0,0.00019178,2]
[358490144,1745206255732,-9394.37,0.00019178,2]
[358490145,1745206255743,-500.0,0.00019178,2]
[358490146,1745206255753,-500.0,0.00019178,2]
[358490147,1745206255763,-500.0,0.00019178,2]
[358490148,1745206255773,-500.0,0.00019178,2]
[358490149,1745206255785,-500.0,0.00019178,2]
[358490150,1745206255794,-505.01206354,0.00019178,2]
[358490151,1745206255804,-500.0,0.00019178,2]
[358490152,1745206255813,-500.0,0.00019178,2]
[358490153,1745206255825,-500.0,0.00019178,2]
[358490154,1745206255834,-502.89804765,0.00019178,2]
[358490155,1745206255844,-500.0,0.00019178,2]
[358490156,1745206255854,-783.41,0.00019178,2]
[358490157,1745206255864,-500.0,0.00019178,2]
[358490158,1745206255873,-500.0,0.00019178,2]
[358490159,1745206255883,-500.0,0.00019178,2]
[358490160,1745206255892,-500.0,0.00019178,2]
[358490161,1745206255902,-500.0,0.00019178,2]
[358490162,1745206255912,-707.09,0.00019178,2]
[358490163,1745206255921,-500.0,0.00019178,2]
[358490164,1745206255931,-500.0,0.00019178,2]
[358490165,1745206255939,-500.0,0.00019178,2]
[358490166,1745206255949,-15416.54,0.00019178,2]
[358490167,1745206255957,-500.0,0.00019178,2]
[358490168,1745206255966,-500.0,0.00019178,2]
[358490169,1745206255976,-500.0,0.00019178,2]
[358490170,1745206255985,-500.0,0.00019178,2]
[358490171,1745206255995,-500.0,0.00019178,2]
[358490172,1745206256003,-500.0,0.00019178,2]
[358490173,1745206256012,-500.4,0.00019178,2]
[358490174,1745206256022,-500.0,0.00019178,2]
[358490175,1745206256032,-500.0,0.00019178,2]
[358490176,1745206256041,-534.14,0.00019178,2]
[358490177,1745206256052,-500.0,0.00019178,2]
[358490178,1745206256061,-500.0,0.00019178,2]
[358490179,1745206256072,-500.0,0.00019178,2]
[358490180,1745206256082,-501.99317094,0.00019178,2]
[358490181,1745206256092,-500.0,0.00019178,2]
[358490182,1745206256101,-502.8686004,0.00019178,2]
[358490183,1745206256111,-200.5207765,0.00019178,2]
[358490184,1745206256122,-500.0,0.00019178,2]
[358490185,1745206256131,-500.0,0.00019178,2]
[358490186,1745206256141,-500.0,0.00019178,2]
[358490187,1745206256151,-500.0,0.00019178,2]
[358490188,1745206256160,-500.0,0.00019178,2]
[358490189,1745206256169,-500.0,0.00019178,2]
[358490190,1745206256179,-500.0,0.00019178,2]
[358490191,1745206256188,-500.0,0.00019178,2]
[358490192,1745206256197,-500.0,0.00019178,2]
[358490193,1745206256207,-514.23798058,0.00019178,2]
[358490194,1745206256216,-500.0,0.00019178,2]
[358490195,1745206256227,-500.0,0.00019178,2]
[358490196,1745206256236,-500.0,0.00019178,2]
[358490197,1745206256246,-500.0,0.00019178,2]
[358490198,1745206256256,-500.0,0.00019178,2]
[358490199,1745206256265,-500.0,0.00019178,2]
[358490200,1745206256275,-500.0,0.00019178,2]
[358490201,1745206256285,-500.0,0.00019178,2]
[358490202,1745206256294,-500.0,0.00019178,2]
[358490203,1745206256303,-500.0,0.00019178,2]
[358490204,1745206256313,-151.0,0.00019178,2]
[358490205,1745206256323,-300.0,0.00019178,2]
[358490206,1745206256333,-151.0,0.000192,2]
[358490207,1745206256343,-156.587,0.00019233,2]
[358490208,1745206256352,-587.0,0.00019265,2]
[358490209,1745206256362,-162.380719,0.00019288,2]
[358490210,1745206256372,-151.0,0.00019315,2]
[358490211,1745206256381,-163.1502035,0.00019315,2]
[358490212,1745206256391,-43221.45340047,0.00019329,2]
[358490213,1745206256400,-168.3888056,0.00019343,2]
[358490214,1745206256411,-291.04686853,0.00019398,2]
[358490215,1745206256420,-199.52800578,0.00019452,2]
[358490216,1745206256430,-472.80388031,0.00019452,2]
[358490217,1745206256439,-500.0,0.00019452,2]
[358490218,1745206256449,-500.0,0.00019452,2]
[358490219,1745206256458,-500.0,0.00019452,2]
[358490220,1745206256468,-500.0,0.00019452,2]
[358490221,1745206256478,-500.0,0.00019452,2]
[358490222,1745206256487,-531.16,0.00019452,2]
[358490223,1745206256497,-506.28902578,0.00019452,2]
[358490224,1745206256506,-505.59335416,0.00019452,2]
[358490225,1745206256515,-500.0,0.00019452,2]
[358490226,1745206256524,-500.0,0.00019452,2]
[358490227,1745206256534,-505.33628581,0.00019452,2]
[358490228,1745206256543,-506.67205353,0.00019452,2]
[358490229,1745206256553,-500.0,0.00019452,2]
[358490230,1745206256562,-508.6718419,0.00019452,2]
[358490231,1745206256572,-156.69517483,0.00019452,2]
[358490232,1745206256581,-500.0,0.00019452,2]
[358490233,1745206256590,-533.42,0.00019452,2]
[358490234,1745206256600,-502.89747653,0.00019452,2]
[358490235,1745206256610,-500.0,0.00019452,2]
[358490236,1745206256619,-500.0,0.00019452,2]
[358490237,1745206256629,-543.31684937,0.00019452,2]
[358490238,1745206256638,-506.48157607,0.00019452,2]
[358490239,1745206256648,-500.0,0.00019452,2]
[358490240,1745206256766,-500.0,0.00019452,2]
[358490241,1745206256776,-500.0,0.00019452,2]
[358490242,1745206256786,-508.24583742,0.00019452,2]
[358490243,1745206256796,-290.81451606,0.00019452,2]
[358490244,1745206256805,-500.0,0.00019452,2]
[358490245,1745206256816,-500.0,0.00019452,2]
[358490246,1745206256825,-500.0,0.00019452,2]
[358490247,1745206256835,-506.76476215,0.00019452,2]
[358490248,1745206256845,-500.0,0.00019452,2]
[358490249,1745206256855,-500.0,0.00019452,2]
[358490250,1745206256864,-502.04690902,0.00019452,2]
[358490251,1745206256874,-500.0,0.00019452,2]
[358490252,1745206256883,-505.90372575,0.00019452,2]
[358490253,1745206256893,-500.0,0.00019452,2]
[358490254,1745206256902,-504.72658824,0.00019452,2]
[358490255,1745206256911,-509.99449918,0.00019452,2]
[358490256,1745206256921,-507.0237364,0.00019452,2]
[358490257,1745206256930,-500.0,0.00019452,2]
[358490258,1745206256940,-500.0,0.00019452,2]
[358490259,1745206256949,-500.0,0.00019452,2]
[358490260,1745206256959,-606.80111154,0.00019452,2]
[358490261,1745206256968,-500.0,0.00019452,2]
[358490262,1745206256977,-500.0,0.00019452,2]
[358490263,1745206256987,-500.0,0.00019452,2]
[358490264,1745206256996,-362.85168388,0.00019452,2]
[358490265,1745206257006,-304.36844838,0.00019452,2]
[358490266,1745206257015,-500.0,0.00019452,2]
[358490267,1745206257024,-500.0,0.00019452,2]
[358490268,1745206257033,-502.10807694,0.00019452,2]
[358490269,1745206257042,-500.0,0.00019452,2]
[358490270,1745206257052,-500.0,0.00019452,2]
[358490271,1745206257061,-500.0,0.00019452,2]
[358490272,1745206257073,-500.0,0.00019452,2]
[358490273,1745206257082,-500.0,0.00019452,2]
[358490274,1745206257091,-173.46492813,0.00019452,2]
[358490275,1745206257101,-500.0,0.00019452,2]
[358490276,1745206257110,-500.0,0.00019452,2]
[358490277,1745206257119,-505.03724646,0.00019452,2]
[358490278,1745206257128,-500.0,0.00019452,2]
[358490279,1745206257138,-500.0,0.00019452,2]
[358490280,1745206257148,-500.0,0.00019452,2]
[358490281,1745206257157,-500.0,0.00019452,2]
[358490282,1745206257167,-500.0,0.00019452,2]
[358490283,1745206257176,-500.0,0.00019452,2]
[358490284,1745206257185,-239.01224206,0.00019452,2]
[358490285,1745206257194,-504.55299373,0.00019452,2]
[358490286,1745206257204,-2038.17,0.00019452,2]
[358490287,1745206257213,-504.59355443,0.00019452,2]
[358490288,1745206257222,-500.0,0.00019452,2]
[358490289,1745206257231,-575.01,0.00019452,2]
[358490290,1745206257241,-500.0,0.00019452,2]
[358490291,1745206257250,-500.0,0.00019452,2]
[358490292,1745206257259,-1080.46,0.00019452,2]
[358490293,1745206257268,-602.85482712,0.00019452,2]
[358490294,1745206257277,-549.86,0.00019452,2]
[358490295,1745206257287,-500.0,0.00019452,2]
[358490296,1745206257296,-500.0,0.00019452,2]
[358490297,1745206257306,-506.00723493,0.00019452,2]
[358490298,1745206257315,-500.0,0.00019452,2]
[358490299,1745206257325,-509.60070319,0.00019452,2]
[358490300,1745206257334,-500.0,0.00019452,2]
[358490301,1745206257344,-500.0,0.00019452,2]
[358490302,1745206257353,-500.0,0.00019452,2]
[358490303,1745206257363,-505.08247257,0.00019452,2]
[358490304,1745206257372,-500.0,0.00019452,2]
[358490305,1745206257381,-500.0,0.00019452,2]
[358490306,1745206257391,-500.0,0.00019452,2]
[358490307,1745206257400,-503.55823927,0.00019452,2]
[358490308,1745206257409,-500.0,0.00019452,2]
[358490309,1745206257419,-500.0,0.00019452,2]
[358490310,1745206257428,-500.0,0.00019452,2]
[358490311,1745206257438,-500.0,0.00019452,2]
[358490312,1745206257448,-500.0,0.00019452,2]
[358490313,1745206257457,-500.0,0.00019452,2]
[358490314,1745206257467,-500.0,0.00019452,2]
[358490315,1745206257476,-500.0,0.00019452,2]
[358490316,1745206257485,-500.0,0.00019452,2]
[358490317,1745206257494,-505.52204692,0.00019452,2]
[358490318,1745206257503,-500.0,0.00019452,2]
[358490319,1745206257512,-506.21365661,0.00019452,2]
[358490320,1745206257522,-178.25654637,0.00019452,2]
[358490321,1745206257531,-500.0,0.00019452,2]
[358490322,1745206257540,-2505.22,0.00019452,2]
[358490323,1745206257549,-500.0,0.00019452,2]
[358490324,1745206257559,-500.0,0.00019452,2]
[358490325,1745206257569,-786.39,0.00019452,2]
[358490326,1745206257578,-500.0,0.00019452,2]
[358490327,1745206257587,-500.0,0.00019452,2]
[358490328,1745206257597,-500.0,0.00019452,2]
[358490329,1745206257606,-500.0,0.00019452,2]
[358490330,1745206257616,-217.1779045,0.00019452,2]
[358490331,1745206257625,-500.0,0.00019452,2]
[358490332,1745206257634,-503.12068926,0.00019452,2]
[358490333,1745206257644,-500.0,0.00019452,2]
[358490334,1745206257654,-569.67028003,0.00019452,2]
[358490335,1745206257663,-506.74477168,0.00019452,2]
[358490336,1745206257673,-500.0,0.00019452,2]
[358490337,1745206257682,-199.73445695,0.00019452,2]
[358490338,1745206257692,-503.71319959,0.00019452,2]
[358490339,1745206257701,-500.0,0.00019452,2]
[358490340,1745206257711,-500.0,0.00019452,2]
[358490341,1745206257720,-500.0,0.00019452,2]
[358490342,1745206257730,-500.0,0.00019452,2]
[358490343,1745206257740,-500.0,0.00019452,2]
[358490344,1745206257755,-500.0,0.00019452,2]
[358490345,1745206257764,-500.0,0.00019452,2]
[358490346,1745206257774,-500.0,0.00019452,2]
[358490347,1745206257784,-500.0,0.00019452,2]
[358490348,1745206257795,-500.0,0.00019452,2]
[358490349,1745206257804,-505.27823665,0.00019452,2]
[358490350,1745206257815,-500.0,0.00019452,2]
[358490351,1745206257824,-500.0,0.00019452,2]
[358490352,1745206257834,-572.60730514,0.00019452,2]
[358490353,1745206257843,-500.0,0.00019452,2]
[358490354,1745206257853,-500.0,0.00019452,2]
[358490355,1745206257862,-500.0,0.00019452,2]
[358490356,1745206257872,-500.0,0.00019452,2]
[358490357,1745206257881,-500.0,0.00019452,2]
[358490358,1745206257891,-502.54346415,0.00019452,2]
[358490359,1745206257901,-500.0,0.00019452,2]
[358490360,1745206257911,-500.0,0.00019452,2]
[358490361,1745206257920,-500.0,0.00019452,2]
[358490362,1745206257930,-500.0,0.00019452,2]
[358490363,1745206257939,-500.0,0.00019452,2]
[358490364,1745206257950,-500.0,0.00019452,2]
[358490365,1745206257960,-500.0,0.00019452,2]
[358490366,1745206257969,-500.0,0.00019452,2]
[358490367,1745206257979,-830.52,0.00019452,2]
[358490368,1745206257989,-500.0,0.00019452,2]
[358490369,1745206257999,-795.16,0.00019452,2]
[358490370,1745206258009,-502.71136615,0.00019452,2]
[358490371,1745206258018,-501.69235556,0.00019452,2]
[358490372,1745206258028,-500.0,0.00019452,2]
[358490373,1745206258037,-500.0,0.00019452,2]
[358490374,1745206258047,-504.09383504,0.00019452,2]
[358490375,1745206258056,-574.06484961,0.00019452,2]
[358490376,1745206258067,-500.0,0.00019452,2]
[358490377,1745206258076,-505.09184375,0.00019452,2]
[358490378,1745206258086,-502.75881304,0.00019452,2]
[358490379,1745206258096,-500.0,0.00019452,2]
[358490380,1745206258105,-506.31622498,0.00019452,2]
[358490381,1745206258114,-503.45,0.00019452,2]
[358490382,1745206258124,-500.0,0.00019452,2]
[358490383,1745206258133,-503.99835008,0.00019452,2]
[358490384,1745206258142,-581.82,0.00019452,2]
[358490385,1745206258152,-500.0,0.00019452,2]
[358490386,1745206258161,-505.07514896,0.00019452,2]
[358490387,1745206258170,-621.54,0.00019452,2]
[358490388,1745206258179,-505.70508136,0.00019452,2]
[358490389,1745206258188,-500.0,0.00019452,2]
[358490390,1745206258197,-501.81036374,0.00019452,2]
[358490391,1745206258207,-500.0,0.00019452,2]
[358490392,1745206258216,-500.0,0.00019452,2]
[358490393,1745206258226,-500.0,0.00019452,2]
[358490394,1745206258235,-500.0,0.00019452,2]
[358490395,1745206258245,-500.0,0.00019452,2]
[358490396,1745206258254,-500.0,0.00019452,2]
[358490397,1745206258262,-500.0,0.00019452,2]
[358490398,1745206258272,-500.0,0.00019452,2]
[358490399,1745206258281,-527.82334393,0.00019452,2]
[358490400,1745206258291,-500.0,0.00019452,2]
[358490401,1745206258300,-505.00924717,0.00019452,2]
[358490402,1745206258309,-500.0,0.00019452,2]
[358490403,1745206258319,-500.0,0.00019452,2]
[358490404,1745206258328,-501.83574767,0.00019452,2]
[358490405,1745206258337,-500.0,0.00019452,2]
[358490406,1745206258347,-500.0,0.00019452,2]
[358490407,1745206258356,-500.0,0.00019452,2]
[358490408,1745206258365,-500.0,0.00019452,2]
[358490409,1745206258373,-500.0,0.00019452,2]
[358490410,1745206258383,-500.0,0.00019452,2]
[358490411,1745206258392,-500.0,0.00019452,2]
[358490412,1745206258402,-500.0,0.00019452,2]
[358490413,1745206258411,-500.0,0.00019452,2]
[358490414,1745206258421,-500.0,0.00019452,2]
[358490415,1745206258432,-500.0,0.00019452,2]
[358490416,1745206258441,-500.0,0.00019452,2]
[358490417,1745206258450,-500.0,0.00019452,2]
[358490418,1745206258460,-504.06704402,0.00019452,2]
[358490419,1745206258469,-513.03462829,0.00019452,2]
[358490420,1745206258478,-500.0,0.00019452,2]
[358490421,1745206258487,-503.02147147,0.00019452,2]
[358490422,1745206258497,-500.0,0.00019452,2]
[358490423,1745206258506,-500.0,0.00019452,2]
[358490424,1745206258516,-500.0,0.00019452,2]
[358490425,1745206258614,-500.0,0.00019452,2]
[358490426,1745206258624,-413.66385137,0.00019452,2]
[358490427,1745206258634,-500.0,0.00019452,2]
[358490428,1745206258644,-500.0,0.00019452,2]
[358490429,1745206258653,-655.69,0.00019452,2]
[358490430,1745206258663,-500.0,0.00019452,2]
[358490431,1745206258672,-500.0,0.00019452,2]
[358490432,1745206258682,-500.0,0.00019452,2]
[358490433,1745206258692,-502.71638933,0.00019452,2]
[358490434,1745206258701,-500.0,0.00019452,2]
[358490435,1745206258710,-505.46097753,0.00019452,2]
[358490436,1745206258720,-511.71869093,0.00019452,2]
[358490437,1745206258730,-500.0,0.00019452,2]
[358490438,1745206258740,-504.35731036,0.00019452,2]
[358490439,1745206258752,-500.0,0.00019452,2]
[358490440,1745206258761,-500.0,0.00019452,2]
[358490441,1745206258771,-510.61673446,0.00019452,2]
[358490442,1745206258780,-500.0,0.00019452,2]
[358490443,1745206258790,-506.06511903,0.00019452,2]
[358490444,1745206258799,-500.0,0.00019452,2]
[358490445,1745206258808,-500.0,0.00019452,2]
[358490446,1745206258820,-233.44516846,0.00019452,2]
[358490447,1745206258830,-500.0,0.00019452,2]
[358490448,1745206258840,-500.0,0.00019452,2]
[358490449,1745206258850,-500.0,0.00019452,2]
[358490450,1745206258859,-500.0,0.00019452,2]
[358490451,1745206258868,-500.0,0.00019452,2]
[358490452,1745206258878,-500.0,0.00019452,2]
[358490453,1745206258887,-503.73553837,0.00019452,2]
[358490454,1745206258896,-505.25467413,0.00019452,2]
[358490455,1745206258906,-297.20605709,0.00019452,2]
[358490456,1745206258917,-500.0,0.00019452,2]
[358490457,1745206258927,-500.0,0.00019452,2]
[358490458,1745206258938,-500.0,0.00019452,2]
[358490459,1745206258948,-500.0,0.00019452,2]
[358490460,1745206258958,-500.0,0.00019452,2]
[358490461,1745206258967,-500.0,0.00019452,2]
[358490462,1745206258977,-500.0,0.00019452,2]
[358490463,1745206258986,-500.0,0.00019452,2]
[358490464,1745206258996,-7783.31,0.00019452,2]
[358490465,1745206259007,-500.0,0.00019452,2]
[358490466,1745206259016,-500.0,0.00019452,2]
[358490467,1745206259026,-500.0,0.00019452,2]
[358490468,1745206259036,-500.0,0.00019452,2]
[358490469,1745206259045,-504.80858259,0.00019452,2]
[358490470,1745206259055,-505.79684965,0.00019452,2]
[358490471,1745206259066,-500.0,0.00019452,2]
[358490472,1745206259075,-500.0,0.00019452,2]
[358490473,1745206259085,-500.0,0.00019452,2]
[358490474,1745206259094,-502.59741339,0.00019452,2]
[358490475,1745206259104,-903.05,0.00019452,2]
[358490476,1745206259113,-506.56307389,0.00019452,2]
[358490477,1745206259123,-500.0,0.00019452,2]
[358490478,1745206259132,-500.0,0.00019452,2]
[358490479,1745206259142,-507.0876168,0.00019452,2]
[358490480,1745206259152,-511.18728198,0.00019452,2]
[358490481,1745206259161,-505.04009546,0.00019452,2]
[358490482,1745206259171,-500.0,0.00019452,2]
[358490483,1745206259180,-500.0,0.00019452,2]
[358490484,1745206259190,-500.0,0.00019452,2]
[358490485,1745206259199,-500.0,0.00019452,2]
[358490486,1745206259209,-500.0,0.00019452,2]
[358490487,1745206259218,-500.0,0.00019452,2]
[358490488,1745206259229,-500.0,0.00019452,2]
[358490489,1745206259240,-500.0,0.00019452,2]
[358490490,1745206259250,-500.0,0.00019452,2]
[358490491,1745206259260,-500.0,0.00019452,2]
[358490492,1745206259270,-500.0,0.00019452,2]
[358490493,1745206259279,-500.0,0.00019452,2]
[358490494,1745206259289,-503.67965231,0.00019452,2]
[358490495,1745206259299,-283.25192471,0.00019452,2]
[358490496,1745206259308,-721.97,0.00019452,2]
[358490497,1745206259319,-500.0,0.00019452,2]
[358490498,1745206259329,-500.0,0.00019452,2]
[358490499,1745206259339,-500.0,0.00019452,2]
[358490500,1745206259349,-2227.9,0.00019452,2]
[358490501,1745206259359,-500.0,0.00019452,2]
[358490502,1745206259369,-502.80196056,0.00019452,2]
[358490503,1745206259378,-504.18812585,0.00019452,2]
[358490504,1745206259388,-500.0,0.00019452,2]
[358490505,1745206259398,-543.36,0.00019452,2]
[358490506,1745206259408,-500.0,0.00019452,2]
[358490507,1745206259419,-502.94378147,0.00019452,2]
[358490508,1745206259428,-500.0,0.00019452,2]
[358490509,1745206259437,-500.0,0.00019452,2]
[358490510,1745206259447,-500.0,0.00019452,2]
[358490511,1745206259456,-500.0,0.00019452,2]
[358490512,1745206259467,-500.0,0.00019452,2]
[358490513,1745206259476,-500.0,0.00019452,2]
[358490514,1745206259486,-500.0,0.00019452,2]
[358490515,1745206259495,-507.59228036,0.00019452,2]